[Event "VII Totalizator Sportowy 2022"]
[Site "Bydgoszcz"]
[Date "2022.06.29"]
[Round "5.14"]
[White "Perkampus, Laurin"]
[Black "Zebracki, Tomasz"]
[Result "1/2-1/2"]
[ECO "D10"]
[WhiteElo "2061"]
[BlackElo "2200"]
[Annotator "NA RC"]
[PlyCount "112"]
[EventDate "2022.06.25"]
[EventType "swiss"]
[EventCountry "POL"]
[SourceTitle "playchess.com"]
[Source "ChessBase"]
[SourceQuality "1"]
[TimeControl "40/5400+30:1800+30"]

1. d4 {[%emt 0:00:02]} d5 {[%emt 0:00:05]} 2. c4 {[%emt 0:00:04]} c6 {[%emt 0:00:03]} 3. cxd5 {[%emt 0:00:13]} cxd5 {[%emt 0:00:01]} 4. Nc3 {[%emt 0:00:08]} e5 {[%emt 0:00:04]} 5. dxe5 {[%emt 0:04:39]} d4 {[%emt 0:00:02]} 6. Ne4 {[%emt 0:03:13]} Qa5+ {[%emt 0:00:06]} 7. Bd2 {[%emt 0:05:18]} Qxe5 {[%emt 0:01:15]} 8. Ng3 {[%emt 0:04:30]} Nc6 {[%emt 0:00:11]} 9. Nf3 {[%emt 0:02:01]} Qd5 {[%emt 0:00:31]} 10. Bc3 {[%emt 0:28:42]} Be6 {[%emt 0:29:46]} 11. Nxd4 {[%emt 0:08:43]} Nxd4 {[%emt 0:00:14]} 12. Qxd4 {[%emt 0:14:04]} Qxd4 {[%emt 0:00:08]} 13. Bxd4 {[%emt 0:00:02]} Bb4+ {[%emt 0:00:19]} 14. Kd1 {[%emt 0:01:43]} O-O-O {[%emt 0:36:30]} 15. e3 {[%emt 0:00:49]} Ne7 {[%emt 0:00:02]} 16. Bb5 {[%emt 0:15:47]} a6 {[%emt 0:03:46]} 17. Rc1+ {[%emt 0:00:13]} Kb8 {[%emt 0:00:16]} 18. Bc4 {[%emt 0:00:21]} Nc6 {[%emt 0:12:44]} 19. Ne2 {[%emt 0:00:12]} Bf5 {[%emt 0:02:03]} 20. a3 {[%emt 0:06:38]} Bc5 {[%emt 0:00:02]} 21. Bxf7 {[%emt 0:03:02]} Bxd4 {[%emt 0:00:01]} 22. exd4 {[%emt 0:00:32]} Nxd4 {[%emt 0:04:41]} 23. Nxd4 {[%emt 0:00:03]} Rxd4+ {[%emt 0:00:06]} 24. Ke2 {[%emt 0:00:30]} Rf8 {[%emt 0:00:30]} 25. Ba2 {[%emt 0:00:39]} Re8+ {[%emt 0:00:07]} 26. Kf3 {[%emt 0:00:32]} Rd2 {[%emt 0:04:35]} 27. Rhe1 {[%emt 0:00:46]} Rf8 {[%emt 0:00:01]} 28. Kg3 {[%emt 0:00:33]} Rxb2 {[%emt 0:00:14]} 29. Bd5 {[%emt 0:00:11]} Rd8 {[%emt 0:01:46]} 30. Re5 {[%emt 0:00:05]} Bg6 {[%emt 0:00:39]} 31. Bf3 {[%emt 0:00:25]} Rb3 {[%emt 0:01:24]} 32. Re7 {[%emt 0:00:37]} Bh5 {[%emt 0:00:26]} 33. Rcc7 {[%emt 0:00:32]} Bxf3 {[%emt 0:00:44]} 34. gxf3 {[%emt 0:00:01]} Rf8 {[%emt 0:01:18]} 35. Kg4 {[%emt 0:01:24]} h5+ {[%emt 0:01:09]} 36. Kxh5 {[%emt 0:00:24]} Rfxf3 {[%emt 0:00:05]} 37. Rxg7 {[%emt 0:00:43]} Rxf2 {[%emt 0:01:20]} 38. h4 {[%emt 0:00:14]} Rb5+ {[%emt 0:00:40]} 39. Kg4 {[%emt 0:00:49]} Rg2+ {[%emt 0:00:22]} 40. Kf4 {[%emt 0:00:00]} Rh2 {[%emt 0:00:00]} 41. Kg3 {[%emt 0:19:10]} Ra2 {[%emt 0:06:02]} 42. Rc3 {[%emt 0:00:21]} Rb1 {[%emt 0:16:29]} 43. Kf4 {[%emt 0:04:00]} Rh2 {[%emt 0:01:43]} 44. Rg4 {[%emt 0:02:36]} Ka7 {[%emt 0:03:30]} 45. Kg5 {[%emt 0:03:23]} a5 {[%emt 0:00:51]} 46. Rc7 {[%emt 0:02:00]} Rb3 {[%emt 0:03:24]} 47. a4 {[%emt 0:00:50]} Rb4 {[%emt 0:01:51]} 48. Rxb4 {[%emt 0:00:40]} axb4 {[%emt 0:00:01]} 49. Rc4 {[%emt 0:00:08]} Rg2+ {[%emt 0:00:55]} 50. Kf5 {[%emt 0:00:32]} Rb2 {[%emt 0:00:18]} 51. Rc5 {[%emt 0:01:02]} b3 {[%emt 0:01:28]} 52. Rb5 {[%emt 0:00:38]} Rb1 {[%emt 0:00:36]} 53. Kg5 {[%emt 0:01:08]} b2 {[%emt 0:00:13]} 54. Kh5 {[%emt 0:00:11]} Ka6 {[%emt 0:00:08]} 55. Rb4 {[%emt 0:00:40]} b6 {[%emt 0:00:15]} 56. Rb5 {[%emt 0:00:21]} Ka7 {[%emt 0:00:41]} 1/2-1/2

[Event "VII Totalizator Sportowy 2022"]
[Site "Bydgoszcz"]
[Date "2022.06.29"]
[Round "5.15"]
[White "Paprocki, Jaroslaw"]
[Black "Paprocki, Antoni"]
[Result "1/2-1/2"]
[ECO "B11"]
[WhiteElo "2165"]
[BlackElo "1851"]
[Annotator "NA RC"]
[PlyCount "84"]
[EventDate "2022.06.25"]
[EventType "swiss"]
[EventCountry "POL"]
[SourceTitle "playchess.com"]
[Source "ChessBase"]
[SourceQuality "1"]
[TimeControl "40/5400+30:1800+30"]

1. e4 {[%emt 0:00:03]} c6 {[%emt 0:00:05]} 2. Nf3 {[%emt 0:01:58]} d5 {[%emt 0:00:06]} 3. Nc3 {[%emt 0:02:13]} Bg4 {[%emt 0:00:20]} 4. h3 {[%emt 0:00:28]} Bxf3 {[%emt 0:01:00]} 5. Qxf3 {[%emt 0:00:07]} e6 {[%emt 0:00:22]} 6. d3 {[%emt 0:08:50]} Nd7 {[%emt 0:01:30]} 7. g3 {[%emt 0:03:30]} Ngf6 {[%emt 0:01:13]} 8. Bg2 {[%emt 0:00:12]} Bc5 {[%emt 0:02:35]} 9. O-O {[%emt 0:01:05]} O-O {[%emt 0:00:22]} 10. Qd1 {[%emt 0:05:31]} Bd4 {[%emt 0:04:56]} 11. Ne2 {[%emt 0:01:10]} Bb6 {[%emt 0:00:20]} 12. exd5 {[%emt 0:01:41]} exd5 {[%emt 0:05:13]} 13. b3 {[%emt 0:05:03]} Re8 {[%emt 0:07:58]} 14. Bb2 {[%emt 0:01:11]} Nf8 {[%emt 0:15:35]} 15. Nd4 {[%emt 0:01:28]} Ne6 {[%emt 0:02:34]} 16. Nf5 {[%emt 0:02:58]} g6 {[%emt 0:02:30]} 17. Nh6+ {[%emt 0:02:45]} Kg7 {[%emt 0:01:08]} 18. Ng4 {[%emt 0:02:35]} Bd4 {[%emt 0:00:43]} 19. Bxd4 {[%emt 0:03:14]} Nxd4 {[%emt 0:00:07]} 20. Ne3 {[%emt 0:00:38]} Qd7 {[%emt 0:02:43]} 21. Qd2 {[%emt 0:10:15]} Rad8 {[%emt 0:12:11]} 22. Rae1 {[%emt 0:07:16]} Nf5 {[%emt 0:02:42]} 23. Qc3 {[%emt 0:02:35]} d4 {[%emt 0:02:34]} 24. Nxf5+ Qxf5 {[%emt 0:00:02]} 25. Qb4 {[%emt 0:01:48]} Rxe1 {[%emt 0:05:39]} 26. Rxe1 {[%emt 0:00:15]} Rd7 {[%emt 0:00:13]} 27. f4 {[%emt 0:02:08]} Qb5 {[%emt 0:12:28]} 28. Qxb5 cxb5 {[%emt 0:00:02]} 29. Re5 {[%emt 0:06:14]} Rc7 {[%emt 0:00:19]} 30. Rxb5 {[%emt 0:00:56]} b6 {[%emt 0:00:05]} 31. Rb4 {[%emt 0:01:39]} Rxc2 {[%emt 0:00:16]} 32. Ra4 {[%emt 0:04:17]} a5 {[%emt 0:01:01]} 33. b4 {[%emt 0:02:16]} axb4 {[%emt 0:02:50]} 34. Rxb4 {[%emt 0:00:11]} Rxa2 {[%emt 0:00:05]} 35. Rxd4 {[%emt 0:01:46]} Rd2 {[%emt 0:03:49]} 36. g4 {[%emt 0:04:01]} Kf8 {[%emt 0:02:45]} 37. Rd6 {[%emt 0:05:15]} Ke7 {[%emt 0:00:59]} 38. Rxb6 {[%emt 0:00:09]} Rxd3 {[%emt 0:00:09]} 39. Rb7+ {[%emt 0:03:58]} Rd7 {[%emt 0:01:14]} 40. Rb4 {[%emt 0:00:00]} Rd2 {[%emt 0:00:00]} 41. Rb7+ {[%emt 0:07:40]} Rd7 {[%emt 0:01:25]} 42. Rb4 {[%emt 0:03:15]} Rd2 {[%emt 0:00:28]} 1/2-1/2

[Event "VII Totalizator Sportowy 2022"]
[Site "Bydgoszcz"]
[Date "2022.06.29"]
[Round "5.16"]
[White "Dubnevych, Maksym"]
[Black "Rudzinska, Michalina"]
[Result "1/2-1/2"]
[ECO "B12"]
[WhiteElo "2048"]
[BlackElo "2236"]
[Annotator "NA RC"]
[PlyCount "119"]
[EventDate "2022.06.25"]
[EventType "swiss"]
[EventCountry "POL"]
[SourceTitle "playchess.com"]
[Source "ChessBase"]
[SourceQuality "1"]
[TimeControl "40/5400+30:1800+30"]

1. e4 {[%emt 0:00:03]} c6 {[%emt 0:00:06]} 2. d4 {[%emt 0:00:09]} d5 {[%emt 0:00:12]} 3. e5 {[%emt 0:00:19]} Bf5 {[%emt 0:00:08]} 4. h4 {[%emt 0:01:08]} h5 {[%emt 0:00:09]} 5. Bd3 {[%emt 0:00:15]} Bxd3 {[%emt 0:00:11]} 6. Qxd3 {[%emt 0:00:02]} Qa5+ {[%emt 0:00:54]} 7. Nd2 {[%emt 0:00:25]} e6 {[%emt 0:00:17]} 8. Ngf3 {[%emt 0:00:38]} Nh6 {[%emt 0:02:27]} 9. O-O {[%emt 0:02:48]} Nf5 {[%emt 0:02:36]} 10. c4 {[%emt 0:13:32]} Qa6 {[%emt 0:01:09]} 11. g3 {[%emt 0:11:26]} dxc4 {[%emt 0:05:47]} 12. Nxc4 {[%emt 0:01:49]} Nd7 {[%emt 0:00:41]} 13. b3 {[%emt 0:02:02]} Nb6 {[%emt 0:03:10]} 14. a4 {[%emt 0:07:20]} Rd8 {[%emt 0:06:46]} 15. Qc3 {[%emt 0:22:46]} Nd5 {[%emt 0:06:04]} 16. Qb2 {[%emt 0:02:06]} Bb4 {[%emt 0:06:58]} 17. Bd2 {[%emt 0:03:24]} O-O {[%emt 0:01:10]} 18. Bxb4 {[%emt 0:03:28]} Nxb4 {[%emt 0:00:09]} 19. Qc3 {[%emt 0:05:08]} Nd5 {[%emt 0:01:54]} 20. Qb2 {[%emt 0:01:29]} Rd7 {[%emt 0:01:44]} 21. Rfd1 {[%emt 0:03:22]} Rfd8 {[%emt 0:02:25]} 22. Rd2 {[%emt 0:03:19]} b6 {[%emt 0:03:48]} 23. Kh2 {[%emt 0:06:59]} Qb7 {[%emt 0:03:36]} 24. b4 {[%emt 0:01:19]} Qa8 {[%emt 0:22:33]} 25. Rc1 {[%emt 0:01:16]} a5 {[%emt 0:01:49]} 26. bxa5 {[%emt 0:02:10]} bxa5 {[%emt 0:00:06]} 27. Qa3 {[%emt 0:00:17]} Qa6 {[%emt 0:12:55]} 28. Qc5 {[%emt 0:00:48]} Ra7 {[%emt 0:00:33]} 29. Nd6 {[%emt 0:02:38]} Nb4 {[%emt 0:00:57]} 30. Nxf5 {[%emt 0:01:34]} exf5 {[%emt 0:00:06]} 31. Qc4 {[%emt 0:01:28]} Qxc4 {[%emt 0:08:02]} 32. Rxc4 {[%emt 0:00:01]} Rad7 {[%emt 0:00:23]} 33. Kg2 {[%emt 0:00:24]} Kf8 {[%emt 0:00:52]} 34. Kf1 {[%emt 0:00:03]} Rd5 {[%emt 0:01:29]} 35. Ke2 {[%emt 0:01:11]} f6 {[%emt 0:00:40]} 36. exf6 {[%emt 0:00:03]} gxf6 {[%emt 0:00:34]} 37. Rc5 {[%emt 0:00:44]} Re8+ {[%emt 0:01:20]} 38. Kf1 {[%emt 0:00:01]} f4 {[%emt 0:02:04]} 39. Rc3 {[%emt 0:01:26]} fxg3 40. fxg3 {[%emt 0:00:00]} Rf5 {[%emt 0:00:00]} 41. Re2 {[%emt 0:04:34]} Rb8 {[%emt 0:05:31]} 42. Rb2 {[%emt 0:02:49]} Ke7 {[%emt 0:00:40]} 43. Kg2 {[%emt 0:03:28]} Nd5 {[%emt 0:06:05]} 44. Rcb3 {[%emt 0:03:51]} Rb4 {[%emt 0:02:06]} 45. Rxb4 {[%emt 0:00:55]} Nxb4 {[%emt 0:00:06]} 46. Re2+ {[%emt 0:00:48]} Kd6 {[%emt 0:00:20]} 47. Ne1 {[%emt 0:12:01]} Nd5 {[%emt 0:07:15]} 48. Nd3 {[%emt 0:06:09]} Nc3 {[%emt 0:01:37]} 49. Re8 {[%emt 0:00:29]} Nxa4 {[%emt 0:00:50]} 50. Ra8 {[%emt 0:00:34]} Nb6 {[%emt 0:04:15]} 51. Rd8+ {[%emt 0:00:01]} Kc7 {[%emt 0:00:49]} 52. Rh8 {[%emt 0:00:05]} Nd5 {[%emt 0:05:40]} 53. Nc5 {[%emt 0:01:11]} Ne3+ {[%emt 0:00:13]} 54. Kh3 {[%emt 0:00:29]} Nc2 {[%emt 0:03:39]} 55. Rh7+ {[%emt 0:00:04]} Kc8 {[%emt 0:00:13]} 56. Rh8+ {[%emt 0:00:20]} Kc7 {[%emt 0:00:06]} 57. Rh7+ {[%emt 0:00:01]} Kb8 {[%emt 0:00:32]} 58. Rh8+ {[%emt 0:00:05]} Kc7 {[%emt 0:00:24]} 59. Rh7+ {[%emt 0:00:03]} Kc8 {[%emt 0:00:31]} 60. Rh8+ {[%emt 0:00:01]} 1/2-1/2

[Event "VII Totalizator Sportowy 2022"]
[Site "Bydgoszcz"]
[Date "2022.06.29"]
[Round "5.17"]
[White "Kujawski, Adam"]
[Black "Skurniak, Szymon"]
[Result "0-1"]
[ECO "B69"]
[WhiteElo "2246"]
[BlackElo "1960"]
[Annotator "NA RC"]
[PlyCount "80"]
[EventDate "2022.06.25"]
[EventType "swiss"]
[EventCountry "POL"]
[SourceTitle "playchess.com"]
[Source "ChessBase"]
[SourceQuality "1"]
[TimeControl "40/5400+30:1800+30"]

1. e4 {[%emt 0:00:09]} c5 {[%emt 0:00:25]} 2. Nf3 {[%emt 0:00:07]} d6 {[%emt 0:00:10]} 3. d4 {[%emt 0:00:13]} cxd4 {[%emt 0:00:11]} 4. Nxd4 {[%emt 0:00:09]} Nf6 {[%emt 0:00:24]} 5. Nc3 {[%emt 0:00:04]} Nc6 {[%emt 0:00:18]} 6. Bg5 {[%emt 0:01:01]} e6 {[%emt 0:00:20]} 7. Qd2 {[%emt 0:00:48]} a6 {[%emt 0:00:16]} 8. O-O-O {[%emt 0:00:36]} Bd7 {[%emt 0:00:17]} 9. f4 {[%emt 0:01:15]} Be7 {[%emt 0:01:14]} 10. Nf3 {[%emt 0:02:31]} b5 {[%emt 0:00:13]} 11. Bxf6 {[%emt 0:01:15]} gxf6 {[%emt 0:00:36]} 12. f5 {[%emt 0:00:17]} Qb6 {[%emt 0:00:35]} 13. g3 {[%emt 0:02:41]} O-O-O {[%emt 0:01:16]} 14. fxe6 {[%emt 0:09:50]} fxe6 {[%emt 0:03:19]} 15. Bh3 {[%emt 0:00:35]} Kb8 {[%emt 0:00:40]} 16. Kb1 {[%emt 0:07:13]} Na5 {[%emt 0:02:42]} 17. b3 {[%emt 0:12:36]} b4 {[%emt 0:06:12]} 18. Ne2 {[%emt 0:02:17]} e5 {[%emt 0:00:11]} 19. Bxd7 {[%emt 0:01:08]} Rxd7 {[%emt 0:00:40]} 20. c4 {[%emt 0:12:20]} Nb7 {[%emt 0:25:46]} 21. Nc1 {[%emt 0:13:23]} Nc5 {[%emt 0:03:44]} 22. Qd5 {[%emt 0:04:08]} a5 {[%emt 0:15:12]} 23. Nd3 {[%emt 0:01:04]} Nxd3 {[%emt 0:02:17]} 24. Rxd3 {[%emt 0:01:43]} Ra7 {[%emt 0:08:45]} 25. Qe6 {[%emt 0:14:00]} Qc6 {[%emt 0:04:22]} 26. Rd5 {[%emt 0:00:59]} a4 {[%emt 0:04:27]} 27. Rb5+ {[%emt 0:01:25]} Ka8 {[%emt 0:02:27]} 28. Qd5 {[%emt 0:00:25]} Qxd5 {[%emt 0:01:30]} 29. cxd5 {[%emt 0:04:56]} axb3 {[%emt 0:01:31]} 30. axb3 {[%emt 0:00:09]} f5 {[%emt 0:06:31]} 31. Nd2 {[%emt 0:01:11]} Bg5 {[%emt 0:04:01]} 32. Nc4 {[%emt 0:00:02]} fxe4 {[%emt 0:01:28]} 33. Nxd6 {[%emt 0:03:17]} Be3 {[%emt 0:00:30]} 34. Rxb4 {[%emt 0:01:52]} Bc5 {[%emt 0:00:15]} 35. Rxe4 {[%emt 0:01:29]} Bxd6 {[%emt 0:00:00]} 36. Rc1 {[%emt 0:00:20]} Ra5 {[%emt 0:01:55]} 37. Ra4 {[%emt 0:00:59]} Rxa4 {[%emt 0:00:15]} 38. bxa4 {[%emt 0:00:01]} Rb8+ {[%emt 0:01:24]} 39. Ka2 {[%emt 0:00:57]} e4 {[%emt 0:01:49]} 40. Rc6 {[%emt 0:00:00]} e3 {[%emt 0:00:00]} 0-1

[Event "VII Totalizator Sportowy 2022"]
[Site "Bydgoszcz"]
[Date "2022.06.29"]
[Round "5.18"]
[White "Kacprzak, Karol"]
[Black "Ratajczak, Hubert"]
[Result "1/2-1/2"]
[ECO "B77"]
[WhiteElo "2200"]
[BlackElo "1899"]
[Annotator "NA RC"]
[PlyCount "28"]
[EventDate "2022.06.25"]
[EventType "swiss"]
[EventCountry "POL"]
[SourceTitle "playchess.com"]
[Source "ChessBase"]
[SourceQuality "1"]
[TimeControl "40/5400+30:1800+30"]

1. e4 {[%emt 0:00:03]} c5 {[%emt 0:00:14]} 2. Nf3 {[%emt 0:00:11]} d6 {[%emt 0:00:23]} 3. d4 {[%emt 0:00:13]} cxd4 {[%emt 0:00:01]} 4. Nxd4 {[%emt 0:00:07]} Nf6 {[%emt 0:00:06]} 5. Nc3 {[%emt 0:00:07]} g6 {[%emt 0:00:26]} 6. Be3 {[%emt 0:01:03]} Bg7 {[%emt 0:00:21]} 7. f3 {[%emt 0:00:22]} O-O {[%emt 0:00:55]} 8. Bc4 {[%emt 0:00:50]} Nc6 {[%emt 0:01:01]} 9. Qd2 {[%emt 0:00:31]} Qa5 {[%emt 0:02:41]} 10. O-O-O {[%emt 0:02:43]} Nxd4 {[%emt 0:01:59]} 11. Bxd4 {[%emt 0:00:30]} Be6 {[%emt 0:01:09]} 12. Bxe6 {[%emt 0:05:09]} fxe6 {[%emt 0:00:08]} 13. Qe2 {[%emt 0:10:14]} Rac8 {[%emt 0:18:53]} 14. Kb1 {[%emt 0:16:03]} Nd7 {[%emt 0:01:21]} 1/2-1/2

[Event "VII Totalizator Sportowy 2022"]
[Site "Bydgoszcz"]
[Date "2022.06.29"]
[Round "5.19"]
[White "Starosciak, Szymon"]
[Black "Rog, Bartlomiej"]
[Result "1/2-1/2"]
[ECO "C88"]
[WhiteElo "1901"]
[BlackElo "2055"]
[Annotator "NA RC"]
[PlyCount "40"]
[EventDate "2022.06.25"]
[EventType "swiss"]
[EventCountry "POL"]
[SourceTitle "playchess.com"]
[Source "ChessBase"]
[SourceQuality "1"]
[TimeControl "40/5400+30:1800+30"]

1. e4 {[%emt 0:00:03]} e5 {[%emt 0:00:09]} 2. Nf3 {[%emt 0:00:17]} Nc6 {[%emt 0:00:09]} 3. Bb5 {[%emt 0:00:11]} a6 {[%emt 0:00:09]} 4. Ba4 {[%emt 0:00:17]} Nf6 {[%emt 0:00:11]} 5. O-O {[%emt 0:00:09]} Be7 {[%emt 0:00:09]} 6. Re1 {[%emt 0:01:24]} b5 {[%emt 0:00:09]} 7. Bb3 {[%emt 0:00:02]} O-O {[%emt 0:00:11]} 8. h3 {[%emt 0:01:01]} Bb7 {[%emt 0:00:19]} 9. d3 {[%emt 0:02:54]} d6 {[%emt 0:01:28]} 10. c3 {[%emt 0:00:13]} Na5 {[%emt 0:00:48]} 11. Bc2 {[%emt 0:00:09]} c5 {[%emt 0:00:11]} 12. d4 {[%emt 0:04:58]} exd4 {[%emt 0:16:12]} 13. cxd4 {[%emt 0:00:03]} d5 {[%emt 0:00:12]} 14. e5 {[%emt 0:04:15]} Ne4 {[%emt 0:00:40]} 15. Nbd2 {[%emt 0:17:51]} f5 {[%emt 0:13:22]} 16. exf6 {[%emt 0:02:19]} Bxf6 {[%emt 0:01:39]} 17. Nxe4 {[%emt 0:09:30]} dxe4 {[%emt 0:00:11]} 18. Bxe4 {[%emt 0:00:13]} cxd4 {[%emt 0:05:47]} 19. Bd2 {[%emt 0:02:33]} Bxe4 {[%emt 0:01:01]} 20. Bxa5 {[%emt 0:04:02]} Bxf3 {[%emt 0:01:44]} 1/2-1/2

[Event "VII Totalizator Sportowy 2022"]
[Site "Bydgoszcz"]
[Date "2022.06.29"]
[Round "5.20"]
[White "Zalega, Maciej"]
[Black "Kulon, Klaudia"]
[Result "0-1"]
[ECO "C58"]
[WhiteElo "2051"]
[BlackElo "2305"]
[Annotator "RC"]
[PlyCount "86"]
[EventDate "2022.06.25"]
[EventType "swiss"]
[EventCountry "POL"]
[SourceTitle "playchess.com"]
[Source "ChessBase"]
[SourceQuality "1"]
[TimeControl "40/5400+30:1800+30"]

1. e4 {[%emt 0:00:02]} e5 {[%emt 0:00:05]} 2. Nf3 {[%emt 0:00:03]} Nc6 {[%emt 0:00:04]} 3. Bc4 {[%emt 0:00:03]} Nf6 {[%emt 0:00:06]} 4. Ng5 {[%emt 0:00:04]} d5 {[%emt 0:00:22]} 5. exd5 {[%emt 0:00:04]} Na5 {[%emt 0:00:04]} 6. Bb5+ {[%emt 0:00:04]} c6 {[%emt 0:00:11]} 7. dxc6 {[%emt 0:00:06]} bxc6 {[%emt 0:00:05]} 8. Bd3 {[%emt 0:00:04]} Nd5 {[%emt 0:00:40]} 9. Nf3 {[%emt 0:00:06]} Bd6 {[%emt 0:00:05]} 10. O-O {[%emt 0:00:29]} Nf4 {[%emt 0:00:05]} 11. Re1 {[%emt 0:00:49]} Nxd3 {[%emt 0:00:07]} 12. cxd3 {[%emt 0:00:03]} O-O {[%emt 0:00:08]} 13. Nc3 {[%emt 0:00:57]} Re8 {[%emt 0:01:30]} 14. b3 {[%emt 0:04:33]} Ba6 {[%emt 0:04:59]} 15. Qc2 {[%emt 0:06:58]} Bc7 {[%emt 0:02:53]} 16. Re3 {[%emt 0:21:54]} Bb6 {[%emt 0:01:21]} 17. Ne1 {[%emt 0:00:20]} Bxe3 {[%emt 0:03:16]} 18. dxe3 {[%emt 0:00:06]} Nb7 {[%emt 0:03:28]} 19. Ba3 {[%emt 0:01:45]} Qa5 {[%emt 0:04:22]} 20. Bb2 {[%emt 0:02:48]} Rad8 {[%emt 0:02:07]} 21. a3 {[%emt 0:03:55]} c5 {[%emt 0:10:02]} 22. Ne4 {[%emt 0:06:33]} f5 {[%emt 0:02:13]} 23. Nd2 {[%emt 0:00:15]} Nd6 {[%emt 0:01:11]} 24. b4 {[%emt 0:04:46]} cxb4 {[%emt 0:13:53]} 25. axb4 {[%emt 0:00:04]} Qb6 {[%emt 0:00:26]} 26. Qc5 {[%emt 0:00:40]} Bb5 {[%emt 0:08:50]} 27. Rxa7 {[%emt 0:06:04]} Qxc5 {[%emt 0:00:06]} 28. bxc5 {[%emt 0:00:05]} Nf7 {[%emt 0:00:06]} 29. Ra3 {[%emt 0:02:57]} Rd5 {[%emt 0:01:19]} 30. e4 {[%emt 0:09:18]} Rxc5 {[%emt 0:01:18]} 31. exf5 {[%emt 0:02:44]} Bd7 {[%emt 0:00:26]} 32. g4 {[%emt 0:02:09]} Rb8 {[%emt 0:00:04]} 33. Nc4 {[%emt 0:03:01]} h5 {[%emt 0:00:18]} 34. Ra7 {[%emt 0:02:07]} Bc6 {[%emt 0:01:34]} 35. Ba3 {[%emt 0:01:16]} Rb1 {[%emt 0:02:10]} 36. Kf1 {[%emt 0:00:29]} Rcb5 {[%emt 0:15:58]} 37. Rxf7 {[%emt 0:08:04]} Kxf7 {[%emt 0:00:19]} 38. Nd6+ {[%emt 0:00:02]} Kf6 {[%emt 0:00:47]} 39. Nxb5 {[%emt 0:02:10]} Bxb5 {[%emt 0:00:01]} 40. f3 {[%emt 0:00:00]} hxg4 {[%emt 0:00:00]} 41. fxg4 {[%emt 0:00:17]} e4 {[%emt 0:01:12]} 42. Kf2 {[%emt 0:01:29]} exd3 {[%emt 0:00:46]} 43. Nf3 {[%emt 0:00:03]} Rf1+ {[%emt 0:01:18]} 0-1

[Event "VII Totalizator Sportowy 2022"]
[Site "Bydgoszcz"]
[Date "2022.06.29"]
[Round "5.21"]
[White "Laux, Dominik"]
[Black "Prieb, Robert"]
[Result "1/2-1/2"]
[ECO "B90"]
[WhiteElo "2263"]
[BlackElo "2034"]
[Annotator "NA RC"]
[PlyCount "92"]
[EventDate "2022.06.25"]
[EventType "swiss"]
[EventCountry "POL"]
[SourceTitle "playchess.com"]
[Source "ChessBase"]
[SourceQuality "1"]
[TimeControl "40/5400+30:1800+30"]

1. e4 {[%emt 0:00:19]} c5 {[%emt 0:00:19]} 2. Nf3 {[%emt 0:00:10]} d6 {[%emt 0:00:19]} 3. d4 {[%emt 0:00:07]} cxd4 {[%emt 0:00:17]} 4. Nxd4 {[%emt 0:00:05]} Nf6 {[%emt 0:00:16]} 5. Nc3 {[%emt 0:00:05]} a6 {[%emt 0:00:10]} 6. Be3 {[%emt 0:00:18]} e5 {[%emt 0:00:32]} 7. Nb3 {[%emt 0:00:08]} Be6 {[%emt 0:00:33]} 8. f3 {[%emt 0:00:21]} Be7 {[%emt 0:00:28]} 9. Qd2 {[%emt 0:00:14]} O-O {[%emt 0:00:26]} 10. O-O-O {[%emt 0:00:29]} Nbd7 {[%emt 0:00:27]} 11. g4 {[%emt 0:00:48]} b5 {[%emt 0:00:25]} 12. g5 {[%emt 0:00:26]} b4 {[%emt 0:00:18]} 13. Ne2 {[%emt 0:00:20]} Ne8 {[%emt 0:00:27]} 14. f4 {[%emt 0:00:37]} a5 {[%emt 0:00:38]} 15. f5 {[%emt 0:00:10]} a4 {[%emt 0:00:18]} 16. fxe6 {[%emt 0:00:44]} axb3 {[%emt 0:00:19]} 17. cxb3 {[%emt 0:00:26]} fxe6 {[%emt 0:00:23]} 18. Bh3 {[%emt 0:00:04]} Nc7 {[%emt 0:00:56]} 19. Kb1 {[%emt 0:01:45]} Ra6 {[%emt 0:11:01]} 20. Bg2 {[%emt 0:06:54]} Kh8 {[%emt 0:07:45]} 21. h4 {[%emt 0:03:08]} d5 {[%emt 0:03:03]} 22. h5 {[%emt 0:19:35]} d4 {[%emt 0:07:01]} 23. g6 {[%emt 0:04:43]} dxe3 {[%emt 0:33:02]} 24. Qxd7 {[%emt 0:00:46]} Rd6 {[%emt 0:00:45]} 25. Rxd6 {[%emt 0:02:54]} Bxd6 {[%emt 0:00:08]} 26. Qxd8 {[%emt 0:01:44]} Rxd8 {[%emt 0:00:08]} 27. Rd1 {[%emt 0:04:58]} Nb5 {[%emt 0:04:44]} 28. Rd3 {[%emt 0:06:38]} Nd4 {[%emt 0:03:07]} 29. Rxe3 {[%emt 0:04:33]} Bc5 {[%emt 0:01:58]} 30. Rd3 {[%emt 0:08:35]} Rf8 {[%emt 0:04:25]} 31. Nxd4 {[%emt 0:01:08]} exd4 {[%emt 0:00:27]} 32. Rf3 {[%emt 0:00:28]} Rxf3 {[%emt 0:09:26]} 33. Bxf3 {[%emt 0:00:02]} hxg6 {[%emt 0:00:13]} 34. hxg6 {[%emt 0:00:05]} Kg8 {[%emt 0:00:49]} 35. e5 {[%emt 0:01:49]} Bb6 {[%emt 0:01:56]} 36. Kc2 {[%emt 0:01:38]} Bc7 {[%emt 0:01:02]} 37. Kd3 {[%emt 0:00:14]} Bxe5 {[%emt 0:00:12]} 38. Bg4 {[%emt 0:00:03]} Kf8 {[%emt 0:00:28]} 39. Bxe6 {[%emt 0:00:07]} Ke7 {[%emt 0:00:24]} 40. Bf5 {[%emt 0:00:00]} Kd8 {[%emt 0:00:00]} 41. Kc4 {[%emt 0:02:54]} Bd6 {[%emt 0:02:28]} 42. Kxd4 {[%emt 0:00:10]} Kc7 {[%emt 0:00:32]} 43. Kc4 {[%emt 0:00:11]} Kb6 {[%emt 0:00:21]} 44. Be4 {[%emt 0:00:19]} Be7 {[%emt 0:00:24]} 45. Bd5 {[%emt 0:00:16]} Ka5 {[%emt 0:00:17]} 46. Be4 {[%emt 0:00:06]} Kb6 {[%emt 0:00:05]} 1/2-1/2